fUST/lending_fUST_20240212
["ID","MTS","AMOUNT","RATE_DAILY","PERIOD"]
[313828005,1707744643592,-1909.24,0.00019452,2]
[313828006,1707744643601,-6449.46,0.00019452,2]
[313828009,1707744643610,-7412.68,0.00019452,2]
[313828011,1707744643619,-598.79,0.00019452,2]
[313828012,1707744643628,-500.0,0.00019452,2]
[313828014,1707744643637,-500.0,0.00019452,2]
[313828016,1707744643646,-1106.43,0.00019452,2]
[313828018,1707744643655,-500.0,0.00019452,2]
[313828021,1707744643664,-500.0,0.00019452,2]
[313828023,1707744643674,-1406.94,0.00019452,2]
[313828025,1707744643683,-614.36,0.00019452,2]
[313828027,1707744643692,-251.05849201,0.00019579,2]
[313828028,1707744643701,-500.0,0.00019726,2]
[313828030,1707744643710,-500.0,0.00019726,2]
[313828033,1707744643722,-500.0,0.00019726,2]
[313828035,1707744643730,-10989.02,0.00019726,2]
[313828037,1707744643739,-500.0,0.00019726,2]
[313828039,1707744643748,-1336.6,0.00019726,2]
[313828041,1707744643757,-500.0,0.00019726,2]
[313828043,1707744643766,-500.0,0.00019726,2]
[313828044,1707744643775,-500.0,0.00019726,2]
[313828046,1707744643785,-1909.24,0.00019726,2]
[313828048,1707744643794,-6449.46,0.00019726,2]
[313828051,1707744643804,-7412.68,0.00019726,2]
[313828053,1707744643813,-598.79,0.00019726,2]
[313828055,1707744643822,-500.0,0.00019726,2]
[313828057,1707744643831,-500.0,0.00019726,2]
[313828058,1707744643841,-1106.43,0.00019726,2]
[313828061,1707744643851,-500.0,0.00019726,2]
[313828063,1707744643860,-500.0,0.00019726,2]
[313828065,1707744643869,-1406.94,0.00019726,2]
[313828067,1707744643878,-614.36,0.00019726,2]
[313828069,1707744643887,-251.05849201,0.00019829,2]
[313828071,1707744643896,-1524.75282043,0.00019976,2]
[313828073,1707744643905,-300.0,0.0002,2]
[313828074,1707744643913,-1253.10818554,0.0002,2]
[313828076,1707744643922,-500.0,0.0002,2]
[313828079,1707744643931,-500.0,0.0002,2]
[313828081,1707744643940,-10989.02,0.0002,2]
[313828083,1707744643949,-1336.6,0.0002,2]
[313828085,1707744643959,-500.0,0.0002,2]
[313828087,1707744643968,-500.0,0.0002,2]
[313828089,1707744643977,-1909.24,0.0002,2]
[313828090,1707744643986,-500.0,0.0002,2]
[313828093,1707744643996,-6449.46,0.0002,2]
[313828095,1707744644005,-7412.68,0.0002,2]
[313828097,1707744644014,-598.79,0.0002,2]
[313828099,1707744644023,-500.0,0.0002,2]
[313828101,1707744644032,-500.0,0.0002,2]
[313828103,1707744644041,-1106.43,0.0002,2]
[313828105,1707744644050,-500.0,0.0002,2]
[313828107,1707744644059,-500.0,0.0002,2]
[313828109,1707744644068,-1406.94,0.0002,2]
[313828111,1707744644077,-614.36,0.0002,2]
[313828113,1707744644086,-888.61817035,0.0002007,2]
[313828115,1707744644096,-500.0,0.00020079,2]
[313828117,1707744644106,-706.59,0.00020079,2]
[313828119,1707744644115,-969.0,0.00020079,2]
[313828121,1707744644125,-500.0,0.00020079,2]
[313828123,1707744644134,-500.0,0.00020079,2]
[313828125,1707744644142,-500.0,0.00020079,2]
[313828127,1707744644151,-500.0,0.00020079,2]
[313828129,1707744644161,-500.0,0.00020079,2]
[313828131,1707744644170,-1110.33,0.00020079,2]
[313828133,1707744644179,-500.0,0.00020079,2]
[313828135,1707744644188,-500.0,0.00020079,2]
[313828137,1707744644199,-2688.01,0.00020079,2]
[313828139,1707744644211,-251.05849201,0.00020079,2]
[313828141,1707744644220,-3971.25,0.00020079,2]
[313828143,1707744644229,-500.0,0.00020079,2]
[313828145,1707744644238,-1026.32,0.00020079,2]
[313828147,1707744644247,-500.0,0.00020079,2]
[313828149,1707744644256,-1576.23,0.00020079,2]
[313828151,1707744644264,-807.79,0.00020079,2]
[313828154,1707744644285,-1072.9987849,0.0002008,2]
[313828156,1707744644295,-155.51731021,0.00020169,2]
[313828158,1707744644305,-500.0,0.00020169,2]
[313828160,1707744644314,-500.0,0.00020169,2]
[313828162,1707744644324,-500.0,0.00020169,2]
[313828164,1707744644333,-500.0,0.00020169,2]
[313828166,1707744644342,-356.67160798,0.00020169,2]
[313828168,1707744644352,-500.0,0.00020169,2]
[313828170,1707744644361,-500.0,0.00020169,2]
[313828172,1707744644370,-500.0,0.00020169,2]
[313828174,1707744644380,-500.0,0.00020169,2]
[313828176,1707744644389,-643.80094467,0.00020169,2]
[313828178,1707744644398,-500.0,0.00020169,2]
[313828180,1707744644408,-500.0,0.00020169,2]
[313828182,1707744644417,-500.0,0.00020169,2]
[313828184,1707744644427,-500.0,0.00020169,2]
[313828186,1707744644436,-500.0,0.00020169,2]
[313828188,1707744644445,-500.0,0.00020169,2]
[313828190,1707744644454,-500.0,0.00020169,2]
[313828192,1707744644464,-457.29687472,0.00020169,2]
[313828194,1707744644474,-500.0,0.00020169,2]
[313828196,1707744644484,-500.0,0.00020169,2]
[313828198,1707744644494,-500.0,0.00020169,2]
[313828201,1707744644504,-1017.45,0.00020169,2]
[313828203,1707744644514,-500.0,0.00020169,2]
[313828205,1707744644523,-500.0,0.00020169,2]
[313828207,1707744644532,-500.0,0.00020169,2]
[313828209,1707744644541,-500.0,0.00020169,2]
[313828210,1707744644551,-500.0,0.00020169,2]
[313828212,1707744644560,-500.0,0.00020169,2]
[313828215,1707744644570,-408.86600456,0.00020169,2]
[313828217,1707744644579,-7406.77,0.00020169,2]
[313828219,1707744644589,-500.0,0.00020169,2]
[313828221,1707744644599,-500.0,0.00020169,2]
[313828223,1707744644608,-5876.66,0.00020169,2]
[313828225,1707744644617,-4042.04,0.00020169,2]
[313828227,1707744644626,-648.09,0.00020169,2]
[313828229,1707744644636,-261.22503123,0.00020178,2]
[313828231,1707744644645,-262.41994744,0.00020178,7]
[313828233,1707744644654,-181.54986875,0.00020178,2]
[313828235,1707744644664,-155.3722912,0.00020178,2]
[313828237,1707744644673,-155.76286218,0.00020178,2]
[313828239,1707744644682,-155.22580866,0.00020178,2]
[313828241,1707744644692,-202.374893,0.00020178,2]
[313828243,1707744644702,-160.18585955,0.00020178,2]
[313828245,1707744644711,-298.31247757,0.00020178,2]
[313828247,1707744644721,-167.43465152,0.00020178,2]
[313828249,1707744644731,-678.79538316,0.00020178,2]
[313828251,1707744644742,-1297.66046519,0.00020178,2]
[313828253,1707744644751,-264.83014184,0.00020178,2]
[313828255,1707744644760,-250.0,0.00020178,2]
[313828257,1707744644770,-4858.39505092,0.00020179,2]
[313828259,1707744644780,-622.12226943,0.00020179,2]
[313828261,1707744644789,-622.91501277,0.0002018,2]
[313828264,1707744644798,-2846.12836898,0.0002018,2]
[313828387,1707744645926,-1596.09917428,0.0002018,2]
[313828598,1707744669016,1366.53943215,0.00016828,5]
[313828606,1707745496646,402.00358314,0.00016828,2]
[313828609,1707745671757,1359.92935495,0.00016828,5]
[313828610,1707745672708,20291.90999898,0.00016828,2]
[313828611,1707745689731,1359.92935495,0.00016828,5]
[313828612,1707745707722,1305.56712774,0.00016828,5]
[313828613,1707745713400,-2720.58919756,0.00017766,5]
[313828640,1707745832012,-1948.7295734,0.0001766,2]
[313828642,1707745832022,-1019.11530917,0.0001766,2]
[313828644,1707745832031,-232.62797295,0.00017661,2]
[313828646,1707745832040,-185.13374743,0.00017661,2]
[313828648,1707745832049,-1962.74466832,0.00017662,2]
[313828650,1707745832059,-9113.41162922,0.00017666,2]
[313828652,1707745832068,-5000.0,0.00017767,2]
[313828655,1707745832078,-4131.2370995,0.00017971,2]
[313828659,1707745832089,-2445.5766393,0.00017971,2]
[313828662,1707745832098,-200.0,0.00018548,2]
[313828665,1707745832108,-559.47310757,0.000189,2]
[313828668,1707745832116,-182.13919928,0.00019076,2]
[313828671,1707745832126,-182.13919925,0.00019145,2]
[313828674,1707745832135,-1750.25250728,0.00019173,2]
[313828677,1707745832145,-260.99042361,0.00019173,2]
[313828680,1707745832154,-181.61100377,0.00019173,2]
[313828683,1707745832163,-235.24290887,0.00019173,2]
[313828686,1707745832173,-118.04369547,0.00019173,5]
[313828690,1707745832185,-1947.1308543,0.00019173,5]
[313828693,1707745832198,-159.1591962,0.00019173,5]
[313828695,1707745832207,-155.050873,0.00019174,2]
[313828697,1707745832217,-159.38167513,0.00019174,2]
[313828699,1707745832225,-1484.25133393,0.00019175,2]
[313829110,1707745838169,-82482.05424004,0.00019175,2]
[313829111,1707745838179,-296.71935561,0.00019176,2]
[313829112,1707745838189,-2872.50360392,0.00019176,2]
[313829113,1707745838198,-155.07133281,0.00019176,2]
[313829114,1707745838208,-1038.415131,0.00019176,2]
[313829115,1707745838218,-155.41194351,0.00019176,2]
[313829116,1707745838229,-739.30022229,0.00019176,2]
[313829117,1707745838238,-523.68160801,0.00019176,2]
[313829118,1707745838248,-500.0,0.00019178,2]
[313829119,1707745838257,-500.0,0.00019178,2]
[313829120,1707745838267,-500.0,0.00019178,2]
[313829121,1707745838277,-500.0,0.00019178,2]
[313829122,1707745838286,-500.0,0.00019178,2]
[313829123,1707745838297,-500.0,0.00019178,2]
[313829124,1707745838307,-500.0,0.00019178,2]
[313829125,1707745838317,-500.0,0.00019178,2]
[313829126,1707745838327,-341.1449097,0.00019178,2]
[313829127,1707745838337,-385.81979695,0.00019178,2]
[313829128,1707745838347,-1276.0,0.00019178,2]
[313829129,1707745838357,-553.64,0.00019178,2]
[313829130,1707745838366,-500.0,0.00019178,2]
[313829131,1707745838375,-1427.68,0.00019178,2]
[313829132,1707745838385,-331.88165347,0.00019178,2]
[313829133,1707745838394,-500.0,0.00019178,2]
[313829134,1707745838405,-500.0,0.00019178,2]
[313829135,1707745838414,-500.0,0.00019178,2]
[313829136,1707745838425,-500.0,0.00019178,2]
[313829137,1707745838435,-500.0,0.00019178,2]
[313829138,1707745838444,-500.0,0.00019178,2]
[313829139,1707745838453,-500.0,0.00019178,2]
[313829140,1707745838463,-500.0,0.00019178,2]
[313829141,1707745838473,-500.0,0.00019178,2]
[313829142,1707745838482,-500.0,0.00019178,2]
[313829143,1707745838491,-500.0,0.00019178,2]
[313829144,1707745838501,-500.0,0.00019178,2]
[313829145,1707745838510,-500.0,0.00019178,2]
[313829146,1707745838519,-799.45,0.00019178,2]
[313829147,1707745838529,-500.0,0.00019178,2]
[313829148,1707745838541,-500.0,0.00019178,2]
[313829149,1707745838554,-585.38524555,0.00019178,2]
[313829150,1707745838569,-500.0,0.00019178,2]
[313829151,1707745838578,-502.67216967,0.00019178,2]
[313829152,1707745838587,-500.0,0.00019178,2]
[313829153,1707745838597,-500.0,0.00019178,2]
[313829154,1707745838608,-500.0,0.00019178,2]
[313829155,1707745838619,-500.0,0.00019178,2]
[313829156,1707745838630,-500.0,0.00019178,2]
[313829157,1707745838641,-500.0,0.00019178,2]
[313829158,1707745838654,-500.0,0.00019178,2]
[313829159,1707745838664,-500.0,0.00019178,2]
[313829160,1707745838673,-500.0,0.00019178,2]
[313829161,1707745838683,-7481.49,0.00019178,2]
[313829162,1707745838692,-500.0,0.00019178,2]
[313829163,1707745838701,-530.96364075,0.00019178,2]
[313829164,1707745838711,-1501.4,0.00019178,2]
[313829165,1707745838720,-500.0,0.00019178,2]
[313829166,1707745838730,-13928.82,0.00019178,2]
[313829167,1707745838740,-500.0,0.00019178,2]
[313829168,1707745838750,-500.0,0.00019178,2]
[313829169,1707745838760,-500.0,0.00019178,2]
[313829170,1707745838770,-10126.7,0.00019178,2]
[313829171,1707745838779,-500.0,0.00019178,2]
[313829172,1707745838789,-151.0,0.00019178,2]
[313829173,1707745838798,-212.21282,0.00019178,2]
[313829174,1707745838808,-500.0,0.00019178,2]
[313829175,1707745838817,-500.0,0.00019178,2]
[313829176,1707745838827,-1556.22,0.00019178,2]
[313829177,1707745838836,-500.0,0.00019178,2]
[313829178,1707745838846,-883.29749772,0.00019178,2]
[313829179,1707745838859,-1250.305474,0.00019178,2]
[313829202,1707745843093,-395.8622458,0.00019178,2]
[313829240,1707746031547,3169.94907766,0.000181,4]
[313829298,1707746693612,2145.0127079,0.000181,4]
[313829418,1707747041510,-232.62797295,0.00017818,2]
[313829419,1707747041519,-70.23913575,0.00017819,2]
[313829421,1707747041598,-2733.66587533,0.00017819,2]
[313829422,1707747041610,-168.58756942,0.00017819,2]
[313829423,1707747041620,-541.537761,0.00017832,2]
[313829424,1707747041630,-181.88356,0.00017906,2]
[313829425,1707747041639,-489.16287774,0.000181,2]
[313829426,1707747041651,-219.25120073,0.000181,2]
[313829427,1707747041661,-6716.11154196,0.00018176,2]
[313829428,1707747041670,-434.81726367,0.000189,2]
[313829429,1707747041679,-755.35423829,0.00018985,3]
[313829430,1707747041690,-182.13919925,0.00019078,2]
[313829431,1707747041700,-200.0,0.00019083,2]
[313829432,1707747041710,-778.87498369,0.00019176,2]
[313829433,1707747041720,-226.04728466,0.00019176,2]
[313829434,1707747041729,-1032.36645246,0.00019176,3]
[313829435,1707747041738,-154.9203552,0.00019176,2]
[313829436,1707747041747,-539.66582939,0.00019177,2]
[313829437,1707747041756,-78.42830331,0.00019178,2]
[313829449,1707747043237,-421.57169669,0.00019178,2]
[313829451,1707747043248,-500.0,0.00019178,2]
[313829453,1707747043257,-500.0,0.00019178,2]
[313829455,1707747043267,-500.0,0.00019178,2]
[313829457,1707747043275,-112.97955376,0.00019178,2]
[313829460,1707747043291,-387.02044624,0.00019178,2]
[313829461,1707747043300,-588.14,0.00019178,2]
[313829464,1707747043310,-500.0,0.00019178,2]
[313829466,1707747043320,-238.31577832,0.00019178,2]
[313829468,1707747043329,-500.0,0.00019178,2]
[313829470,1707747043340,-185.00969341,0.00019178,2]
[313829472,1707747043349,-500.0,0.00019178,2]
[313829474,1707747043358,-170.09892946,0.00019178,2]
[313829476,1707747043371,-329.90107054,0.00019178,2]
[313829478,1707747043381,-500.0,0.00019178,2]
[313829480,1707747043390,-500.0,0.00019178,2]
[313829482,1707747043400,-500.0,0.00019178,2]
[313829484,1707747043410,-500.0,0.00019178,2]
[313829486,1707747043419,-1398.19328983,0.00019178,2]
[313829554,1707747046300,-258.56671017,0.00019178,2]
[313829556,1707747046310,-822.97,0.00019178,2]
[313829558,1707747046320,-500.0,0.00019178,2]
[313829560,1707747046329,-500.0,0.00019178,2]
[313829562,1707747046339,-1853.71,0.00019178,2]
[313829564,1707747046348,-500.0,0.00019178,2]
[313829566,1707747046358,-500.0,0.00019178,2]
[313829568,1707747046367,-500.0,0.00019178,2]
[313829570,1707747046377,-500.0,0.00019178,2]
[313829572,1707747046386,-500.0,0.00019178,2]
[313829574,1707747046395,-500.0,0.00019178,2]
[313829576,1707747046404,-500.0,0.00019178,2]
[313829578,1707747046415,-500.0,0.00019178,2]
[313829580,1707747046424,-500.0,0.00019178,2]
[313829582,1707747046433,-500.0,0.00019178,2]
[313829584,1707747046442,-500.0,0.00019178,2]
[313829586,1707747046451,-295.52733503,0.00019178,2]
[313829588,1707747046460,-310.40365999,0.00019178,2]
[313829590,1707747046469,-500.0,0.00019178,2]
[313829592,1707747046479,-963.29,0.00019178,2]
[313829594,1707747046488,-500.0,0.00019178,2]
[313829596,1707747046497,-1498.63,0.00019178,2]
[313829598,1707747046506,-500.0,0.00019178,2]
[313829600,1707747046515,-500.0,0.00019178,2]
[313829602,1707747046524,-500.0,0.00019178,2]
[313829604,1707747046533,-1094.79,0.00019178,2]
[313829607,1707747046551,-2097.78,0.00019178,2]
[313829610,1707747046564,-647.98216186,0.00019178,2]
[313829612,1707747046574,-500.0,0.00019178,2]
[313829614,1707747046583,-500.0,0.00019178,2]
[313829616,1707747046593,-500.0,0.00019178,2]
[313829618,1707747046602,-565.96015145,0.00019178,2]
[313829620,1707747046612,-500.0,0.00019178,2]
[313829622,1707747046622,-7169.76,0.00019178,2]
[313829624,1707747046631,-509.20874752,0.00019178,2]
[313829960,1707748235566,-500.0,0.00018897,2]
[313829961,1707748235576,-330.09998685,0.00018897,2]
[313829962,1707748235588,-1104.95015831,0.00018897,2]
[313829963,1707748235598,-155.51614598,0.00018897,2]
[313829964,1707748235608,-982.51028321,0.00018898,2]
[313830034,1707748238604,-8794.82311933,0.00018898,2]
[313830036,1707748238613,-821.43357407,0.00018898,2]
[313830038,1707748238622,-481.9175327,0.00018898,2]
[313830040,1707748238631,-289.87817578,0.000189,2]
[313830042,1707748238640,-606.40991841,0.00019078,2]
[313830044,1707748238649,-83993.39666499,0.00019174,2]
[313830046,1707748238659,-1281.43395838,0.00019175,2]
[313830048,1707748238668,-3757.13220272,0.00019175,2]
[313830050,1707748238678,-212.6780741,0.00019175,2]
[313830052,1707748238686,-17895.95489157,0.00019175,2]
[313830054,1707748238695,-6834.30855409,0.00019175,2]
[313830056,1707748238704,-5282.62575812,0.00019175,2]
[313830058,1707748238714,-257.50292062,0.00019175,2]
[313830059,1707748238723,-1018.5820408,0.00019175,2]
[313830061,1707748238732,-1756.20956114,0.00019175,3]
[313830063,1707748238741,-157.78233967,0.00019175,2]
[313830065,1707748238751,-300.45172402,0.00019175,2]
[313830067,1707748238760,-692.24642684,0.00019175,2]
[313830069,1707748238769,-330.4947575,0.00019175,2]
[313830071,1707748238778,-161.15837441,0.00019175,2]
[313830073,1707748238787,-352.22679364,0.00019175,2]
[313830076,1707748238796,-1297.69513983,0.00019175,2]
[313830079,1707748238806,-294.48801659,0.00019176,2]
[313830081,1707748238815,-500.0,0.00019178,2]
[313830083,1707748238823,-500.0,0.00019178,2]
[313830085,1707748238832,-500.0,0.00019178,2]
[313830087,1707748238841,-500.0,0.00019178,2]
[313830089,1707748238850,-504.1399779,0.00019178,2]
[313830091,1707748238859,-513.89390014,0.00019178,2]
[313830093,1707748238868,-500.0,0.00019178,2]
[313830095,1707748238877,-500.0,0.00019178,2]
[313830097,1707748238886,-500.0,0.00019178,2]
[313830099,1707748238895,-337.57309681,0.00019178,2]
[313830101,1707748238904,-500.0,0.00019178,2]
[313830103,1707748238913,-500.0,0.00019178,2]
[313830105,1707748238922,-500.0,0.00019178,2]
[313830107,1707748238931,-500.0,0.00019178,2]
[313830109,1707748238940,-500.0,0.00019178,2]
[313830111,1707748238949,-500.0,0.00019178,2]
[313830113,1707748238958,-500.0,0.00019178,2]
[313830115,1707748238967,-500.0,0.00019178,2]
[313830117,1707748238976,-500.0,0.00019178,2]
[313830119,1707748238986,-500.0,0.00019178,2]
[313830121,1707748238995,-500.0,0.00019178,2]
[313830123,1707748239004,-505.93932868,0.00019178,2]
[313830125,1707748239013,-500.0,0.00019178,2]
[313830127,1707748239023,-500.0,0.00019178,2]
[313830129,1707748239032,-317.85551631,0.00019178,2]
[313830131,1707748239041,-500.0,0.00019178,2]
[313830133,1707748239050,-389.62151504,0.00019178,2]
[313830135,1707748239059,-500.0,0.00019178,2]
[313830137,1707748239068,-500.0,0.00019178,2]
[313830139,1707748239077,-500.0,0.00019178,2]
[313830141,1707748239086,-150.0,0.00019178,2]
[313830143,1707748239095,-500.0,0.00019178,2]
[313830145,1707748239104,-437.4765401,0.00019178,2]
[313830147,1707748239113,-503.74032367,0.00019178,2]
[313830149,1707748239122,-500.0,0.00019178,2]
[313830151,1707748239131,-500.0,0.00019178,2]
[313830153,1707748239140,-507.37502973,0.00019178,2]
[313830155,1707748239149,-500.0,0.00019178,2]
[313830157,1707748239158,-558.32068146,0.00019178,2]
[313830159,1707748239168,-500.0,0.00019178,2]
[313830161,1707748239177,-503.02429674,0.00019178,2]
[313830163,1707748239186,-194.45550495,0.00019178,2]
[313830165,1707748239195,-1587.73,0.00019178,2]
[313830166,1707748239205,-500.0,0.00019178,2]
[313830168,1707748239214,-500.0,0.00019178,2]
[313830169,1707748239223,-788.68,0.00019178,2]
[313830171,1707748239232,-500.0,0.00019178,2]
[313830173,1707748239241,-1776.47,0.00019178,2]
[313830175,1707748239250,-500.0,0.00019178,2]
[313830177,1707748239259,-500.0,0.00019178,2]
[313830179,1707748239269,-500.0,0.00019178,2]
[313830181,1707748239278,-500.0,0.00019178,2]
[313830183,1707748239288,-500.0,0.00019178,2]
[313830185,1707748239298,-500.0,0.00019178,2]
[313830187,1707748239309,-500.0,0.00019178,2]
[313830189,1707748239319,-500.0,0.00019178,2]
[313830191,1707748239328,-500.0,0.00019178,2]
[313830192,1707748239337,-507.66620808,0.00019178,2]
[313830193,1707748239346,-500.53314637,0.00019178,2]
[313830194,1707748239356,-541.27651996,0.00019178,2]
[313830195,1707748239365,-526.79848113,0.00019178,2]
[313830196,1707748239375,-500.0,0.00019178,2]
[313830197,1707748239385,-500.0,0.00019178,2]
[313830198,1707748239394,-513.9973892,0.00019178,2]
[313830199,1707748239403,-570.31009821,0.00019178,2]
[313830200,1707748239413,-500.0,0.00019178,2]
[313830201,1707748239422,-500.0,0.00019178,2]
[313830202,1707748239431,-500.0,0.00019178,2]
[313830203,1707748239440,-257.41845674,0.00019178,2]
[313830204,1707748239450,-500.0,0.00019178,2]
[313830205,1707748239459,-359.71879797,0.00019178,2]
[313830402,1707748241617,-140.28120203,0.00019178,2]
[313830405,1707748241627,-500.0,0.00019178,2]
[313830407,1707748241637,-500.0,0.00019178,2]
[313830409,1707748241647,-500.0,0.00019178,2]
[313830411,1707748241656,-151.412232,0.00019178,2]
[313830413,1707748241665,-500.0,0.00019178,2]
[313830415,1707748241674,-500.0,0.00019178,2]
[313830416,1707748241683,-562.94997037,0.00019178,2]
[313830418,1707748241693,-500.0,0.00019178,2]
[313830420,1707748241702,-500.0,0.00019178,2]
[313830422,1707748241711,-1527.46,0.00019178,2]
[313830424,1707748241719,-985.11,0.00019178,2]
[313830426,1707748241729,-500.0,0.00019178,2]
[313830429,1707748241739,-500.0,0.00019178,2]
[313830432,1707748241749,-500.0,0.00019178,2]
[313830436,1707748241758,-544.82670082,0.00019178,2]
[313830439,1707748241768,-1021.61776097,0.00019178,2]
[313830442,1707748241780,-95.96223903,0.00019178,2]
[313830445,1707748241789,-500.0,0.00019178,2]
[313830448,1707748241798,-1319.75,0.00019178,2]
[313830450,1707748241807,-500.0,0.00019178,2]
[313830452,1707748241816,-500.0,0.00019178,2]
[313830454,1707748241825,-2127.7,0.00019178,2]
[313830456,1707748241834,-500.0,0.00019178,2]
[313830458,1707748241843,-326.07652162,0.00019178,2]
[313830459,1707748241852,-500.0,0.00019178,2]
[313830461,1707748241862,-500.0,0.00019178,2]
[313830463,1707748241872,-500.0,0.00019178,2]
[313830465,1707748241881,-7308.15,0.00019178,2]
[313830467,1707748241891,-1529.59,0.00019178,2]
[313830469,1707748241900,-12184.77123934,0.00019178,2]
[313830472,1707748241912,-2052.63876066,0.00019178,2]
[313830474,1707748241921,-151.0,0.00019178,2]
[313830476,1707748241930,-151.0,0.00019178,2]
[313830478,1707748241941,-500.0,0.00019178,2]
[313830480,1707748241951,-267.377188,0.00019178,2]
[313830482,1707748241963,-487.65756527,0.00019178,2]
[313830484,1707748241972,-500.0,0.00019178,2]
[313830486,1707748241982,-500.0,0.00019178,2]
[313830488,1707748241995,-84.58171297,0.00019178,2]
[313830490,1707748242010,-440.7735275,0.00019178,2]
[313830492,1707748242019,-500.0,0.00019178,2]
[313830494,1707748242028,-500.0,0.00019178,2]
[313830496,1707748242037,-548.26450434,0.00019178,2]
[313830498,1707748242049,-8120.88549566,0.00019178,2]
[313830500,1707748242058,-500.0,0.00019178,2]
[313830502,1707748242067,-293.04651491,0.00019178,2]
[313830504,1707748242077,-210.76798943,0.00019178,2]
[313830506,1707748242088,-358.59690157,0.00019178,2]
[313830508,1707748242097,-569.364891,0.00019178,2]
[313830510,1707748242106,-500.0,0.00019178,2]
[313830512,1707748242116,-569.364891,0.00019178,2]
[313830514,1707748242125,-569.364891,0.00019178,2]
[313830516,1707748242134,-8430.08215459,0.00019178,2]
[313830668,1707748243518,-1741.48784541,0.00019178,2]
[313830681,1707748243528,-500.0,0.00019178,2]
[313830684,1707748243645,-151.0,0.00019178,2]
[313830686,1707748243654,-152.817652,0.00019178,2]
[313830688,1707748243663,-500.0,0.00019178,2]
[313830690,1707748243672,-500.0,0.00019178,2]
[313830692,1707748243681,-500.0,0.00019178,2]
[313830694,1707748243691,-527.11965075,0.00019178,2]
[313830979,1707748246719,-154.86062544,0.00019177,2]
[313830981,1707748246730,-96.53034925,0.00019178,2]
[313830983,1707748246740,-500.0,0.00019178,2]
[313830985,1707748246750,-500.0,0.00019178,2]
[313830987,1707748246759,-500.0,0.00019178,2]
[313830989,1707748246769,-500.0,0.00019178,2]
[313830991,1707748246778,-500.0,0.00019178,2]
[313830993,1707748246786,-7685.17,0.00019178,2]
[313830995,1707748246795,-1678.81,0.00019178,2]
[313830997,1707748246805,-3076.84,0.00019178,2]
[313830999,1707748246815,-500.0,0.00019178,2]
[313831001,1707748246824,-578.23,0.00019178,2]
[313831003,1707748246833,-503.49676638,0.00019178,2]
[313831005,1707748246842,-500.0,0.00019178,2]
[313831007,1707748246851,-5544.9,0.00019178,2]
[313831009,1707748246860,-500.0,0.00019178,2]
[313831010,1707748246869,-613.90053192,0.00019178,2]
[313831013,1707748246879,-500.0,0.00019178,2]
[313831015,1707748246889,-867.6,0.00019178,2]
[313831017,1707748246898,-926.32,0.00019178,2]
[313831019,1707748246908,-3879.01,0.00019178,2]
[313831021,1707748246917,-500.0,0.00019178,2]
[313831023,1707748246926,-29370.13871163,0.00019178,2]
[313839887,1707749267196,353.22628,0.00016978,2]
[313839888,1707749302740,2717.1599322,0.00016797,2]
[313839899,1707749363744,193836.36499642,0.00016797,2]
[313839991,1707749435076,-154.86062544,0.00017157,2]
[313839993,1707749435087,-162.21176964,0.00017158,2]
[313839996,1707749435097,-1759.17236477,0.00017257,3]
[313840000,1707749435108,-154.86062544,0.00017258,3]
[313840002,1707749435118,-162.38458244,0.00017878,2]
[313840004,1707749435128,-179.25607649,0.00017975,2]
[313840005,1707749435137,-1003.49175493,0.00017976,2]